Cogmind - Beta 11.1 @@@ ROGUE MODE // 2022.05.08 @ 13:59:30 Player: Olga Result: Destroyed by G-47 Trooper with Particle Gun Performance ------------- Evolutions (2) 1000 Regions Visited (3) 600 Robots Destroyed (6) 30 Value Destroyed (84) 84 Prototype IDs (0) 0 Alien Tech Used (0) 0 Bonus (200) 200 TOTAL SCORE: 1914 Bonus ------- Pacifist 200 Cogmind --------- Core Integrity 0/550 Matter 230/300 Energy 100/100 System Corruption 1% Temperature Cool (11) Movement Core (50) Location -8/Materials Parts ------- > --- POWER (1) -------- (None) > --- PROPULSION (4) --- (None) > --- UTILITY (4) ------ (None) > --- WEAPON (2) ------- Grenade Launcher > --- INVENTORY (5) ---- Small Storage Unit Terrain Scan Processor Layered Light Armor Plating Layered Light Armor Plating Peak State ------------ > --- POWER ------------ Ion Engine > --- PROPULSION ------- Aluminum Leg Aluminum Leg > --- UTILITY ---------- Small Storage Unit > --- WEAPON ----------- Light Assault Rifle Light Assault Rifle > --- INVENTORY -------- Light Ion Engine Light Treads Light Treads Compact Wheel Light Assault Rifle [Rating: 6] Favorites ----------- Power Ion Engine Engine Ion Engine Propulsion Aluminum Leg Leg Aluminum Leg Flight Unit Flight Unit Utility Small Storage Unit Storage Small Storage Unit Weapon Light Assault Rifle Ballistic Gun Light Assault Rifle Launcher Grenade Launcher Build | -11 -10 -9 -8 ------- Run | Scr Mat Mat Mat Slots Evolved 4 | . . 2 2 Power . | . . . . Propulsion 2 | . . . 2 Utility 2 | . . 2 . Weapon . | . . . . Parts Attached 4 | . . 3 1 Power . | . . . . Engine . | . . . . Core . | . . . . Reactor . | . . . . Propulsion 1 | . . 1 . Treads . | . . . . Leg . | . . . . Wheel . | . . . . Hover . | . . . . Flight 1 | . . 1 . Utility . | . . . . Device . | . . . . Storage . | . . . . Processor . | . . . . Hackware . | . . . . Protection . | . . . . Artifact . | . . . . Weapon 3 | . . 2 1 Energy Gun . | . . . . Energy Cannon . | . . . . Ballistic Gun 1 | . . 1 . Ballistic Cannon . | . . . . Launcher 2 | . . 1 1 Special Weapon . | . . . . Impact Weapon . | . . . . Slashing Weapon . | . . . . Piercing Weapon . | . . . . Special Melee Weapon . | . . . . Unidentified Prototypes . | . . . . Parts Lost 3 | . . . 3 Power . | . . . . Propulsion 1 | . . . 1 Utility . | . . . . Weapon 2 | . . . 2 Highest Loss Streak 2 | . . . 2 To Critical Strikes . | . . . . Average Slot Usage (%) 35 | . 57 40 18 Leg 11 | . 28 14 . Flight 4 | . . 3 7 Ballistic Gun 18 | . 28 20 10 Naked Turns 9 | . . . 9 Heaviest Build 12 | 12 2 2 2 Greatest Support 20 | 20 3 4 4 Greatest Overweight (x) . | . . . . Average Overweight (x) . | . . . . Largest Inventory Capacity 8 | . 8 5 5 Average Capacity 5 | . 5 5 5 Most Carried 5 | . 5 5 5 Average Carried 4 | . 4 5 4 Final Capacity 8 | 8 5 5 5 Final Carried 6 | 6 5 5 4 Class Distribution -------------------- 100% | Mutant Dominant Class ---------------- Mutant | -10/Materials Mutant | -9/Materials Mutant | -8/Materials Resources | -11 -10 -9 -8 ----------- Run | Scr Mat Mat Mat Matter Collected 200 | 200 . . . Remotely . | . . . . Salvage Created 30 | . . 22 8 Parts 8 | . . 5 3 Haulers Intercepted . | . . . . Recyclers Shooed . | . . . . Parts Field Recycled . | . . . . Retrieved Matter . | . . . . Parts Self-Destructed . | . . . . Prevented . | . . . . Kills | -11 -10 -9 -8 ------- Run | Scr Mat Mat Mat Combat Hostiles Destroyed 6 | . . 4 2 AOE 6 | . . 4 2 Classes Destroyed 2 | . . 1 1 Swarmer 4 | . . 4 . Cutter 2 | . . . 2 Best Kill Streak 4 | . . 4 2 Combat Bots Only 4 | . . 4 2 Max Kills in Single Turn 2 | . . 2 1 Gunslinging . | . . . . Exploded 2 | . . 2 1 Melee . | . . . . Uniques/NPCs Destroyed . | . . . . Combat | -11 -10 -9 -8 -------- Run | Scr Mat Mat Mat Damage Taken 881 | . . 114 767 Core 580 | . . 14 566 Absorbed by Shields . | . . . . Core Remaining (%) 98 | 100 100 96 . Volleys Fired 6 | . 1 2 3 Largest 2 | . 2 1 1 Hottest 40 | . 40 30 30 Shots Fired 7 | . 2 2 3 Gun 2 | . 2 . . Cannon . | . . . . Launcher 5 | . . 2 3 Special . | . . . . Kinetic 2 | . 2 . . Thermal . | . . . . Explosive 5 | . . 2 3 Electromagnetic . | . . . . Robot Hit Streak 1 | . 1 . . Robot Miss Streak 1 | . 1 . 1 Penetration Max . | . . . . Secondary Targets . | . . . . Shots Hit Robots 1 | . 1 . . Core Hits 12 | . . 4 8 Critical Kills . | . . . . Critical Parts Destroyed . | . . . . Critical Strikes . | . . . . Melee Attacks . | . . . . Impact . | . . . . Slashing . | . . . . Piercing . | . . . . Sneak Attacks . | . . . . Combat Hostiles . | . . . . Follow-up Attacks . | . . . . Damage Inflicted 375 | . 9 200 166 Guns 9 | . 9 . . Cannons . | . . . . Explosions 356 | . . 200 156 Melee . | . . . . Ramming 10 | . . . 10 Kinetic 9 | . 9 . . Thermal . | . . . . Explosive 356 | . . 200 156 Electromagnetic . | . . . . Impact . | . . . . Slashing . | . . . . Piercing . | . . . . Highest Corruption 1 | . . . 1 Average Corruption 1 | . . . 1 Corruption Purged . | . . . . Corruption Blocked . | . . . . Overload Shots . | . . . . Overflow Damage 2 | . . 2 . Projectiles . | . . . . Explosions 2 | . . 2 . Melee . | . . . . Knockbacks . | . . . . Impact . | . . . . Kinetic . | . . . . Secondary . | . . . . Self-Inflicted Damage 45 | . . . 45 Shots 2 | . . . 2 Rammed 2 | . . . 2 Targets Rammed 2 | . . . 2 Kicked . | . . . . Crushed . | . . . . Highest Temperature 18 | . . . 18 Average Temperature 9 | . . . 9 Received Heat Transfer 264 | . . 30 234 Siege Activations . | . . . . Robots Corrupted . | . . . . Combat Hostiles . | . . . . Parts Fried . | . . . . Impact Corruptions . | . . . . Robots Melted . | . . . . Combat Hostiles . | . . . . Parts Melted . | . . . . Heat Transferred . | . . . . Parts Sabotaged . | . . . . Parts Stolen . | . . . . Parts Stripped . | . . . . Power Chain Reactions . | . . . . Missiles Intercepted . | . . . . Alert | -11 -10 -9 -8 ------- Run | Scr Mat Mat Mat Peak Influence 348 | . 45 186 348 Initial 78 | . . 18 78 Average 102 | . 21 114 153 Maximum Alert Level 1 | . . . 1 Low Security (%) 89 | . 100 100 75 Level 1 10 | . . . 24 Level 2 . | . . . . Level 3 . | . . . . Level 4 . | . . . . Level 5 . | . . . . High Security . | . . . . Max Security . | . . . . Squads Dispatched 7 | . 1 1 5 Investigation . | . . . . Extermination . | . . . . Reinforcement 6 | . 1 1 4 Assault . | . . . . Garrison 1 | . . . 1 Intercept . | . . . . Searches Triggered . | . . . . Construction Impeded . | . . . . Haulers Reinforced . | . . . . Active Scanning Responses . | . . . . Cargo Convoy Interrupts . | . . . . Stealth | -11 -10 -9 -8 --------- Run | Scr Mat Mat Mat Distress Signals 4 | . . . 4 Communications Jammed . | . . . . Distress Signals . | . . . . Times Spotted 39 | . 3 9 27 Peak Tracking Total 24 | . 2 5 24 Tactical Retreats 3 | . 1 . 2 Traps | -11 -10 -9 -8 ------- Run | Scr Mat Mat Mat Traps Triggered . | . . . . Indirectly . | . . . . Trap Hack Attempts . | . . . . Triggered . | . . . . Disarmed . | . . . . Reprogrammed . | . . . . Reused . | . . . . Traps Extracted . | . . . . Installed . | . . . . Triggered . | . . . . Machines | -11 -10 -9 -8 ---------- Run | Scr Mat Mat Mat Machines Disabled 1 | . . . 1 Max in Single Turn 1 | . . . 1 Machines Sabotaged . | . . . . Garrisons Compromised . | . . . . Overloaded Fab Kills . | . . . . Hacking | -11 -10 -9 -8 --------- Run | Scr Mat Mat Mat Machines Accessed 1 | . . . 1 Terminals 1 | . . . 1 Fabricators . | . . . . Repair Stations . | . . . . Recycling Units . | . . . . Scanalyzers . | . . . . Garrison Access . | . . . . Total Hacks 5 | . . . 5 Successful 2 | . . . 2 Failed 3 | . . . 3 Catastrophic . | . . . . Database Lockouts . | . . . . Manual 4 | . . . 4 Terminals 5 | . . . 5 Fabricators . | . . . . Repair Stations . | . . . . Recycling Units . | . . . . Scanalyzers . | . . . . Garrison Access . | . . . . Terminal Hacks 1 | . . . 1 Zone Layout 1 | . . . 1 Fabricator Hacks . | . . . . Repair Station Hacks . | . . . . Recycling Unit Hacks . | . . . . Scanalyzer . | . . . . Garrison Access Hacks . | . . . . Unauthorized Hacks 1 | . . . 1 Terminals 1 | . . . 1 Botnet 1 | . . . 1 Fabricators . | . . . . Repair Stations . | . . . . Recycling Units . | . . . . Scanalyzers . | . . . . Garrison Access . | . . . . Data Cores Recovered . | . . . . Used . | . . . . Hacking Detections 1 | . . . 1 Full Trace Events 1 | . . . 1 Feedback Events 1 | . . . 1 Corruption 1 | . . . 1 Feedback Blocked . | . . . . Robot Schematics Acquired . | . . . . Robots Built . | . . . . Authchips . | . . . . Time . | . . . . Total Robot Build Rating . | . . . . Part Schematics Acquired . | . . . . Parts Built . | . . . . Authchips . | . . . . Time . | . . . . Total Part Build Rating . | . . . . Parts Repaired . | . . . . Time . | . . . . Parts Recycled . | . . . . Recycled Matter . | . . . . Retrieved Matter . | . . . . Retrieved Components . | . . . . Parts Scanalyzed . | . . . . Part Schematics Acquired . | . . . . Parts Damaged . | . . . . Bothacking | -11 -10 -9 -8 ------------ Run | Scr Mat Mat Mat Used RIF Installer . | . . . . Robots Hacked . | . . . . Non-combat . | . . . . Combat . | . . . . Robot Hacks Applied . | . . . . Relay Couplers Released . | . . . . Fabnet Peak Effective % . | . . . . Robots Rewired . | . . . . Allies Hacked . | . . . . Hacks Repelled . | . . . . Allies | -11 -10 -9 -8 -------- Run | Scr Mat Mat Mat Total Allies . | . . . . Largest Group . | . . . . Highest-Rated Group . | . . . . Highest-Rated Ally . | . . . . Total Orders . | . . . . Ally Attacks . | . . . . Total Damage . | . . . . Kills . | . . . . Allies Corrupted . | . . . . Allies Melted . | . . . . Intel | -11 -10 -9 -8 ------- Run | Scr Mat Mat Mat Robot Analysis Total . | . . . . Derelict Logs Recovered . | . . . . Drone Launches . | . . . . Drone Recoveries . | . . . . Exploration | -11 -10 -9 -8 ------------- Run | Scr Mat Mat Mat Turns Passed 242 | . 76 60 106 Spaces Moved 482 | 1 139 110 232 Core 201 | . 139 48 14 Treads . | . . . . Legs 1 | 1 . . . Wheels . | . . . . Hover . | . . . . Flight 280 | . . 62 218 Fastest Speed 40 | 120 50 40 40 Average Speed 44 | 120 50 44 40 Slowest Speed 120 | 120 50 50 50 Overloaded Moves . | . . . . Propulsion Burnouts . | . . . . Robots Hopped 14 | . . 1 13 Cave-ins Triggered . | . . . . Exploration Rate (%) 27 | 2 44 21 41 Regions Visited 3 Branch Regions . Pre-discovered Areas . | . . . . Known Exits Taken . | . . . . Unknown Exits Taken 3 | 1 1 1 . Scrap Searched . | . . . . Spaces Dug . | . . . . Terrain Destroyed 18 | . . 11 7 Melee . | . . . . Projectile . | . . . . AOE 18 | . . 11 7 Terrain Rammed . | . . . . Walls Destroyed . | . . . . Machines Disabled . | . . . . Actions | -11 -10 -9 -8 --------- Run | Scr Mat Mat Mat Total 491 | . 145 117 229 Wait . | . . . . Move 454 | . 138 108 208 Hop 11 | . . . 11 Pick Up 4 | . 1 1 2 Fast Attach 1 | . . 1 . Attach 1 | . . . 1 Detach 1 | . 1 . . Swap 2 | . . 2 . Drop 9 | . 4 3 2 Fire 6 | . 1 2 3 Melee . | . . . . Ram 2 | . . . 2 Kick . | . . . . Crush . | . . . . Escape Stasis . | . . . . Rewire . | . . . . Trap . | . . . . Miscellaneous . | . . . . Route ------- -11/Scrapyard -10/Materials (discovered 2 exits: [*Mat] / [*Min]) -9/Materials -8/Materials History --------- Turn | Location | Event 1 | -11/Scrapyard | Discovered new exit (range 0) 1 | -11/Scrapyard | Entered Materials 51 | -10/Materials | Discovered new exit (range 15) 72 | -10/Materials | Discovered new exit (range 9) 77 | -10/Materials | Entered another Materials area 77 | -9/Materials | Evolved 2 slots: Utility x2 133 | -9/Materials | Discovered new exit (range 10) 137 | -9/Materials | Entered another Materials area 137 | -8/Materials | Evolved 2 slots: Propulsion x2 232 | -8/Materials | Core integrity fell below 50% 239 | -8/Materials | Core integrity fell below 20% 240 | -8/Materials | Garrison activated, responded to threat 243 | -8/Materials | Destroyed by G-47 Trooper with Particle Gun Last Messages --------------- 00229_ K-01 Serf destroyed. 00229_ Slammed into H-61 Shepherd. 00229_ H-61 Shepherd calls for reinforcements. 00229_ ALERT: Hostile activity reported, dispatching reinforcements to area. 00230_ K-01 Serf collects debris. 00231_ U-05 Engineer builds a Wall. 00231_ Knocked back. 00233_ T-07 Excavator is excavating. 00238_ C-17 Slicer destroyed. 00238_ Knocked back. 00240_ G-47 Trooper calls for garrison reinforcements. 00240_ ALERT: Activating Garrison Access M001. 00241_ T-07 Excavator is excavating. 00242_ U-05 Engineer lays Concrete. 00242_ Pressure Siphon disabled. 00242_ C-17 Slicer destroyed. 00242_ U-05 Engineer lays Concrete. 00243_ U-05 Engineer builds a Wall. 00243_ U-05 Engineer lays Concrete. Map ----- +----------------------------------------------------+ | = # #?????????""??????????????????????###### | | ####??# #????????? ???????????????????????????? | | ??????# #??#######+##??????????????????????????? | | ??????# #? "T" ## #??????????????????????????? | | ??????# # ??# #??????????????????????????? | | ??????# # ""???? #??????????????????????????? | | ??????+ / ??????# +??????????????????????????? | | ??????# # ??????# #??????????????????????????? | | ??????# # ??????# #??????????????????????????? | | ?????## ###????## ##?????????????????????????? | | ###### ####### #?????????????????????????? | | %!%= #?????????????????????????? | | ! #?????????????????????????? | | % ug #??#####??????????????????? | | ###### ###### Yu #?? ##### ?????????????? | | ?????## ##????###ugH##?? ??????????????? | | ??????# #??????##gg ;#?? / ?????????????? | | ??????# #??????## g #?# T ?????????????? | | ????? / ???????# ## ?????????????? | | ???? # ???????## ??????????????? | | ??? # ???????# """ "???????????????? | | ?? !?# ???????## """ ""??????????????? | | ? ??# ????????# " """?????????????? | | ? ??# ????????# "" """ ???????? | | ??????# ????????# c = #??????????? | | ???????? ?????????# @ #??????????? | | ??????????????????###### ######??????????? | | ???????????????????????### ####???????????????? | | ?????????????????????????# #??????????????????? | | ?????????????????????????# t ?????????????????? | | ?????????????????????????# # #????????????????? | | ?????????????????????????#^ #?#????????????????? | | ?????????????????????????# #??????????????????? | | ????????????????????????? ??????????????????? | | ?????????????????????????## ?????????????????? | | ??????????????????????????? ?????????????????? | | ???????????????????????????###+##????????????????? | | ?????????????????????????????????????????????????? | | ?????????????????????????????????????????????????? | | ?????????????????????????????????????????????????? | | ?????????????????????????????????????????????????? | | ?????????????????????????????????????????????????? | | ?????????????????????????????????????????????????? | | ?????????????????????????????????????????????????? | | ?????????????????????????????????????????????????? | | ?????????????????????????????????????????????????? | | ?????????????????????????????????????????????????? | | ?????????????????????????????????????????????????? | | | | | +----------------------------------------------------+ Best States ------------- Heat Dissipation 31 Energy Generation 5 Energy Capacity 100 Matter Stores 300 Matter Capacity 300 Sight Range 16 Terrain Scan Density 10 Evasion (%) 62 Item Schematics ----------------- None Robot Schematics ------------------ None Fabricated ------------ Nothing Alien Tech Used ----------------- None Achievements -------------- None Challenges ------------ None Game ------ Seed CompactGrapheneCasing Manual? 0 Play Time 00:08:20 Cumulative 222.6 hours Start 2022.05.08 @ 13:53:47 End 2022.05.08 @ 13:59:30 Sessions 1 Manual Loads 0 Difficulty Rogue Special Mode None Game No. 322 Rogue 319 Adventurer 0 Explorer 3 Win Type - Total 8 Types 8/0/0/0/0/0/0/0/0 Lore% 69 Gallery% 72 Achievement% 60 Wizard Run 0 Options --------- ASCII 1 Keyboard 0 Movement Vi Keybinds 0 Fullscreen 1 Font 18/SmallcapsGlow Map View 76x50 Tactical HUD 1 Map Filters NONE Filters NONE Steam 1 RUN: e83a9f17-95f3-4441-a0e0-f2cecf666c1b